fUST/lending_fUST_20240413
["ID","MTS","AMOUNT","RATE_DAILY","PERIOD"]
[322448979,1713015046538,-580.63,0.00034942,7]
[322448980,1713015046548,-500.0,0.00034942,7]
[322448981,1713015046557,-505.82341334,0.00034942,7]
[322448982,1713015046568,-1357.57,0.00034942,7]
[322448983,1713015046578,-500.0,0.00034942,7]
[322448984,1713015046674,-1014.92,0.00034942,7]
[322448985,1713015046685,-500.0,0.00034942,7]
[322448986,1713015046695,-500.0,0.00034942,7]
[322448987,1713015046705,-500.0,0.00034942,7]
[322448988,1713015046716,-3042.43,0.00034942,7]
[322448989,1713015046726,-1349.33,0.00034942,7]
[322448990,1713015046739,-500.0,0.00034942,7]
[322448991,1713015046749,-500.0,0.00034942,7]
[322448992,1713015046759,-500.0,0.00034942,7]
[322448993,1713015046769,-500.0,0.00034942,7]
[322448994,1713015046780,-500.0,0.00034942,7]
[322448995,1713015046791,-500.0,0.00034942,7]
[322448996,1713015046801,-500.0,0.00034942,7]
[322448997,1713015046812,-502.09873569,0.00034942,7]
[322448998,1713015046823,-823.08,0.00034942,7]
[322448999,1713015046834,-500.0,0.00034942,7]
[322449000,1713015046844,-725.59,0.00034942,7]
[322449001,1713015046854,-500.0,0.00034942,7]
[322449002,1713015046864,-151.0,0.00034942,2]
[322449003,1713015046873,-2575.23,0.00034942,7]
[322449004,1713015046883,-250.99373887,0.00034942,7]
[322449005,1713015046895,-500.0,0.00034942,7]
[322449006,1713015046907,-1177.63,0.00034942,7]
[322449007,1713015046917,-2208.49,0.00034942,7]
[322449008,1713015046928,-188.72163887,0.00034942,7]
[322449009,1713015046937,-721.69,0.00034942,7]
[322449010,1713015046948,-500.0,0.00034942,7]
[322449011,1713015046958,-151.0,0.00034942,2]
[322449012,1713015046968,-500.0,0.00034942,7]
[322449013,1713015046979,-1096.19,0.00034942,7]
[322449014,1713015046988,-818.08,0.00034942,7]
[322449015,1713015046998,-500.0,0.00034942,7]
[322449016,1713015047010,-2592.32,0.00034942,7]
[322449017,1713015047019,-500.0,0.00034942,7]
[322449018,1713015047029,-500.0,0.00034942,7]
[322449019,1713015047039,-998.3,0.00034942,7]
[322449020,1713015047049,-500.0,0.00034942,7]
[322449021,1713015047060,-500.0,0.00034942,7]
[322449023,1713015047069,-815.7,0.00034942,7]
[322449025,1713015047078,-500.0,0.00034942,7]
[322449027,1713015047087,-1108.59,0.00034942,7]
[322449029,1713015047097,-511.12393042,0.00034942,7]
[322449031,1713015047107,-502.59759276,0.00034942,7]
[322449032,1713015047118,-500.0,0.00034942,7]
[322449034,1713015047128,-1128.53,0.00034942,7]
[322449036,1713015047137,-500.0,0.00034942,7]
[322449037,1713015047147,-504.09628153,0.00034942,7]
[322449038,1713015047157,-500.0,0.00034942,7]
[322449039,1713015047167,-500.0,0.00034942,7]
[322449040,1713015047178,-2516.5,0.00034942,7]
[322449042,1713015047187,-398.44098135,0.00034942,7]
[322449043,1713015047197,-33798.35,0.00034942,7]
[322449045,1713015047207,-500.0,0.00034942,7]
[322449046,1713015047217,-151.0,0.00034942,2]
[322449047,1713015047228,-500.0,0.00034942,7]
[322449048,1713015047238,-500.0,0.00034942,7]
[322449049,1713015047249,-500.0,0.00034942,7]
[322449050,1713015047259,-502.41790659,0.00034942,7]
[322449051,1713015047269,-500.0,0.00034942,7]
[322449052,1713015047279,-500.0,0.00034942,7]
[322449053,1713015047289,-500.0,0.00034942,7]
[322449054,1713015047299,-2217.02,0.00034942,7]
[322449055,1713015047309,-500.0,0.00034942,7]
[322449056,1713015047320,-502.12859615,0.00034942,7]
[322449057,1713015047329,-2535.45,0.00034942,7]
[322449058,1713015047338,-1396.73,0.00034942,7]
[322449059,1713015047348,-939.26,0.00034942,7]
[322449060,1713015047358,-500.0,0.00034942,7]
[322449061,1713015047368,-648.57,0.00034942,7]
[322449062,1713015047378,-706.34,0.00034942,7]
[322449063,1713015047387,-151.0,0.00034942,2]
[322449064,1713015047397,-500.0,0.00034942,7]
[322449065,1713015047407,-151.0,0.00034942,2]
[322449066,1713015047417,-1152.24,0.00034942,7]
[322449067,1713015047426,-151.0,0.00034942,2]
[322449068,1713015047436,-500.0,0.00034942,7]
[322449069,1713015047446,-500.0,0.00034942,7]
[322449070,1713015047455,-500.0,0.00034942,7]
[322449071,1713015047466,-500.0,0.00034942,7]
[322449072,1713015047475,-500.0,0.00034942,7]
[322449073,1713015047485,-500.0,0.00034942,7]
[322449074,1713015047494,-500.0,0.00034942,7]
[322449075,1713015047503,-500.0,0.00034942,7]
[322449076,1713015047513,-648.74,0.00034942,7]
[322449077,1713015047523,-500.0,0.00034942,7]
[322449078,1713015047533,-2250.58,0.00034942,7]
[322449079,1713015047543,-504.05755057,0.00034942,7]
[322449080,1713015047553,-500.0,0.00034942,7]
[322449081,1713015047563,-1147.33,0.00034942,7]
[322449082,1713015047573,-6760.6,0.00034942,7]
[322449083,1713015047583,-500.0,0.00034943,7]
[322449084,1713015047593,-501.56750092,0.00034943,7]
[322449085,1713015047602,-151.0,0.00034943,2]
[322449086,1713015047612,-790.53,0.00034943,7]
[322449087,1713015047621,-500.0,0.00034943,7]
[322449088,1713015047631,-2043.72,0.00034943,7]
[322449089,1713015047640,-151.0,0.00034943,2]
[322449090,1713015047650,-738.77,0.00034943,7]
[322449091,1713015047659,-500.0,0.00034943,7]
[322449092,1713015047669,-500.0,0.00034943,7]
[322449093,1713015047678,-151.0,0.00034943,2]
[322449094,1713015047688,-151.0,0.00034943,2]
[322449095,1713015047697,-500.0,0.00034943,7]
[322449096,1713015047714,-500.0,0.00034943,7]
[322449097,1713015047730,-3317.61,0.00034943,7]
[322449098,1713015047746,-500.0,0.00034943,7]
[322449099,1713015047758,-2363.91,0.00034943,7]
[322449100,1713015047768,-500.0,0.00034943,7]
[322449101,1713015047782,-500.0,0.00034943,7]
[322449102,1713015047795,-500.0,0.00034943,7]
[322449103,1713015047809,-508.33,0.00034943,7]
[322449104,1713015047823,-500.0,0.00034943,7]
[322449105,1713015047838,-853.71,0.00034943,7]
[322449106,1713015047850,-500.0,0.00034943,7]
[322449107,1713015047862,-500.0,0.00034943,7]
[322449108,1713015047874,-500.0,0.00034943,7]
[322449109,1713015047887,-619.20929098,0.00034943,7]
[322449110,1713015047900,-500.0,0.00034943,7]
[322449111,1713015047913,-500.0,0.00034943,7]
[322449112,1713015047927,-500.0,0.00034944,7]
[322449113,1713015047940,-500.0,0.00034944,7]
[322449114,1713015047952,-500.0,0.00034944,7]
[322449115,1713015047966,-213.59816491,0.00034944,7]
[322449116,1713015047981,-640.17,0.00034944,7]
[322449117,1713015047993,-500.0,0.00034944,7]
[322449118,1713015048007,-509.80590463,0.00034944,7]
[322449119,1713015048020,-500.0,0.00034944,7]
[322449120,1713015048033,-503.32067083,0.00034944,7]
[322449121,1713015048048,-502.16071894,0.00034944,7]
[322449122,1713015048061,-500.0,0.00034944,7]
[322449123,1713015048077,-500.0,0.00034944,7]
[322449124,1713015048092,-500.0,0.00034944,7]
[322449125,1713015048108,-1384.9,0.00034944,7]
[322449126,1713015048122,-500.0,0.00034944,7]
[322449127,1713015048135,-500.0,0.00034944,7]
[322449128,1713015048147,-790.53,0.00034944,7]
[322449129,1713015048160,-790.53,0.00034944,7]
[322449130,1713015048175,-500.0,0.00034944,7]
[322449131,1713015048188,-503.57901693,0.00034944,7]
[322449132,1713015048202,-242.504132,0.00034944,2]
[322449133,1713015048215,-151.0,0.00034944,2]
[322449134,1713015048228,-205.253755,0.00034944,2]
[322449135,1713015048240,-191.322643,0.00034944,2]
[322449136,1713015048253,-9088.56662828,0.00035,5]
[322449137,1713015048266,-3621.38392236,0.00035,30]
[322449138,1713015048278,-155.0,0.00035,4]
[322449139,1713015048291,-6861.21270692,0.00035,4]
[322449140,1713015048303,-596.67479795,0.00035,2]
[322449141,1713015048316,-843.03412069,0.00035,2]
[322449142,1713015048328,-151.0,0.00035116,2]
[322449143,1713015048341,-190.001494,0.00035116,2]
[322449144,1713015048352,-190.001494,0.00035116,2]
[322449145,1713015048364,-151.0,0.00035116,2]
[322449146,1713015048376,-151.0,0.00035119,2]
[322449147,1713015048389,-484.472316,0.00035119,2]
[322449148,1713015048402,-484.472316,0.00035119,2]
[322449149,1713015048414,-151.0,0.00035119,2]
[322449150,1713015048426,-151.0,0.00035119,2]
[322449151,1713015048437,-294.73660427,0.00035119,7]
[322449152,1713015048448,-151.0,0.00035119,2]
[322449153,1713015048459,-151.0,0.00035119,2]
[322449154,1713015048471,-8866.39,0.00035119,7]
[322449155,1713015048482,-790.53,0.00035172,7]
[322449156,1713015048493,-154.72653084,0.00035186,7]
[322449157,1713015048504,-987.58,0.00035215,7]
[322449158,1713015048516,-500.0,0.00035215,7]
[322449159,1713015048527,-1583.55,0.00035215,2]
[322449160,1713015048538,-500.0,0.00035216,7]
[322449161,1713015048549,-500.0,0.00035216,7]
[322449162,1713015048560,-500.0,0.00035216,7]
[322449163,1713015048571,-500.0,0.00035216,7]
[322449164,1713015048582,-500.0,0.00035216,7]
[322449165,1713015048593,-500.0,0.00035216,7]
[322449166,1713015048605,-500.0,0.00035216,7]
[322449167,1713015048617,-500.0,0.00035216,7]
[322449168,1713015048628,-500.0,0.00035216,7]
[322449169,1713015048640,-790.53,0.00035216,7]
[322449170,1713015048652,-834.75,0.00035216,7]
[322449171,1713015048663,-500.0,0.00035216,7]
[322449172,1713015048675,-516.88435255,0.00035216,7]
[322449173,1713015048686,-500.0,0.00035216,7]
[322449174,1713015048696,-518.88335223,0.00035216,7]
[322449175,1713015048708,-500.0,0.00035216,7]
[322449176,1713015048718,-508.9012167,0.00035216,7]
[322449177,1713015048732,-500.0,0.00035216,7]
[322449178,1713015048743,-508.52981161,0.00035216,7]
[322449179,1713015048755,-500.0,0.00035216,7]
[322449180,1713015048767,-504.87888477,0.00035216,7]
[322449181,1713015048779,-500.0,0.00035216,7]
[322449182,1713015048791,-151.0,0.00035216,2]
[322449183,1713015048803,-500.0,0.00035216,7]
[322449184,1713015048816,-484.472316,0.00035216,2]
[322449185,1713015048828,-500.0,0.00035216,7]
[322449186,1713015048840,-484.472316,0.00035216,2]
[322449187,1713015048852,-500.0,0.00035216,7]
[322449188,1713015048865,-580.63,0.00035216,7]
[322449189,1713015048877,-500.0,0.00035216,7]
[322449190,1713015048889,-1357.57,0.00035216,7]
[322449191,1713015048900,-500.0,0.00035216,7]
[322449192,1713015048911,-1014.92,0.00035216,7]
[322449193,1713015048924,-500.0,0.00035216,7]
[322449194,1713015048937,-500.0,0.00035216,7]
[322449195,1713015049078,-500.0,0.00035216,7]
[322449196,1713015049090,-3042.43,0.00035216,7]
[322449197,1713015049101,-1349.33,0.00035216,7]
[322449198,1713015049111,-500.0,0.00035216,7]
[322449199,1713015049121,-500.0,0.00035216,7]
[322449200,1713015049131,-289.05681872,0.00035216,7]
[322449201,1713015049142,-500.0,0.00035216,7]
[322449202,1713015049153,-500.0,0.00035216,7]
[322449203,1713015049163,-500.0,0.00035216,7]
[322449204,1713015049173,-823.08,0.00035216,7]
[322449205,1713015049183,-500.0,0.00035216,7]
[322449206,1713015049194,-725.59,0.00035216,7]
[322449207,1713015049204,-151.0,0.00035216,2]
[322449208,1713015049213,-2575.23,0.00035216,7]
[322449209,1713015049223,-561.31233867,0.00035216,7]
[322449210,1713015049234,-1177.63,0.00035216,7]
[322449211,1713015049242,-2208.49,0.00035216,7]
[322449212,1713015049252,-721.69,0.00035216,7]
[322449213,1713015049262,-500.0,0.00035216,7]
[322449214,1713015049272,-151.0,0.00035216,2]
[322449215,1713015049282,-500.0,0.00035216,7]
[322449216,1713015049291,-1096.19,0.00035216,7]
[322449217,1713015049300,-818.08,0.00035216,7]
[322449218,1713015049310,-500.0,0.00035216,7]
[322449219,1713015049319,-2592.32,0.00035216,7]
[322449220,1713015049329,-998.3,0.00035216,7]
[322449221,1713015049338,-500.0,0.00035216,7]
[322449222,1713015049348,-500.0,0.00035216,7]
[322449223,1713015049358,-815.7,0.00035216,7]
[322449224,1713015049368,-500.0,0.00035216,7]
[322449225,1713015049377,-1108.59,0.00035216,7]
[322449226,1713015049388,-500.0,0.00035216,7]
[322449227,1713015049397,-500.0,0.00035216,7]
[322449228,1713015049406,-1128.53,0.00035216,7]
[322449229,1713015049415,-500.0,0.00035216,7]
[322449230,1713015049425,-337.67560102,0.00035216,7]
[322449231,1713015049435,-2516.5,0.00035216,7]
[322449232,1713015049445,-33798.35,0.00035216,7]
[322449233,1713015049455,-500.0,0.00035216,7]
[322449234,1713015049464,-453.65434106,0.00035216,7]
[322449235,1713015049474,-500.0,0.00035216,7]
[322449236,1713015049484,-500.0,0.00035216,7]
[322449237,1713015049494,-500.0,0.00035216,7]
[322449238,1713015049504,-319.14847772,0.00035216,7]
[322449239,1713015049514,-500.0,0.00035216,7]
[322449240,1713015049523,-2217.02,0.00035216,7]
[322449241,1713015049533,-500.0,0.00035216,7]
[322449242,1713015049543,-2535.45,0.00035216,7]
[322449243,1713015049553,-1396.73,0.00035216,7]
[322449244,1713015049562,-939.26,0.00035216,7]
[322449245,1713015049572,-500.0,0.00035216,7]
[322449246,1713015049582,-648.57,0.00035216,7]
[322449247,1713015049591,-706.34,0.00035216,7]
[322449248,1713015049601,-151.0,0.00035216,2]
[322449249,1713015049611,-1152.24,0.00035216,7]
[322449250,1713015049621,-500.0,0.00035216,7]
[322449251,1713015049630,-500.0,0.00035216,7]
[322449252,1713015049640,-500.0,0.00035216,7]
[322449253,1713015049651,-500.0,0.00035216,7]
[322449254,1713015049660,-500.0,0.00035216,7]
[322449255,1713015049669,-500.0,0.00035216,7]
[322449256,1713015049679,-500.0,0.00035216,7]
[322449257,1713015049688,-500.0,0.00035216,7]
[322449258,1713015049698,-648.74,0.00035216,7]
[322449259,1713015049708,-500.0,0.00035216,7]
[322449260,1713015049717,-2250.58,0.00035216,7]
[322449261,1713015049728,-500.0,0.00035216,7]
[322449262,1713015049741,-1147.33,0.00035216,7]
[322449263,1713015049752,-6760.6,0.00035216,7]
[322449264,1713015049761,-500.0,0.00035217,7]
[322449265,1713015049771,-790.53,0.00035217,7]
[322449266,1713015049782,-2043.72,0.00035217,7]
[322449267,1713015049791,-151.0,0.00035217,2]
[322449268,1713015049802,-738.77,0.00035217,7]
[322449269,1713015049812,-190.001494,0.00035217,2]
[322449270,1713015049823,-190.001494,0.00035217,2]
[322449271,1713015049834,-500.0,0.00035217,7]
[322449272,1713015049844,-151.0,0.00035217,2]
[322449273,1713015049855,-500.0,0.00035217,7]
[322449274,1713015049866,-500.0,0.00035217,7]
[322449275,1713015049877,-500.0,0.00035217,7]
[322449276,1713015049887,-3317.61,0.00035217,7]
[322449277,1713015049898,-532.76534943,0.00035217,7]
[322449278,1713015049907,-2363.91,0.00035217,7]
[322449279,1713015049917,-500.0,0.00035217,7]
[322449280,1713015049926,-500.0,0.00035217,7]
[322449281,1713015049936,-508.33,0.00035217,7]
[322449282,1713015049946,-853.71,0.00035217,7]
[322449283,1713015049956,-500.0,0.00035217,7]
[322449284,1713015049966,-191.06795352,0.00035217,7]
[322449285,1713015049977,-500.0,0.00035217,7]
[322449286,1713015049986,-315.41942936,0.00035217,7]
[322449287,1713015049998,-500.0,0.00035217,7]
[322449288,1713015050008,-500.0,0.00035218,7]
[322449289,1713015050018,-527.01206263,0.00035218,7]
[322449290,1713015050028,-640.17,0.00035218,7]
[322449291,1713015050038,-503.40471124,0.00035218,7]
[322449292,1713015050048,-511.08378586,0.00035218,7]
[322449293,1713015050058,-500.0,0.00035218,7]
[322449294,1713015050069,-364.05256396,0.00035218,7]
[322449295,1713015050080,-1384.9,0.00035218,7]
[322449296,1713015050091,-500.0,0.00035218,7]
[322449297,1713015050102,-500.0,0.00035218,7]
[322449298,1713015050113,-790.53,0.00035218,7]
[322449299,1713015050123,-500.0,0.00035218,7]
[322449300,1713015050133,-560.0,0.00035337,2]
[322449301,1713015050145,-151.0,0.00035393,2]
[322449302,1713015050156,-190.001494,0.00035393,2]
[322449303,1713015050166,-190.001494,0.00035393,2]
[322449304,1713015050176,-151.0,0.00035393,2]
[322449305,1713015050188,-151.0,0.00035393,2]
[322449306,1713015050199,-484.472316,0.00035393,2]
[322449307,1713015050209,-484.472316,0.00035393,2]
[322449308,1713015050220,-8866.39,0.00035393,7]
[322449309,1713015050230,-151.0,0.00035393,2]
[322449310,1713015050240,-154.72653084,0.00035452,7]
[322449311,1713015050251,-987.58,0.00035489,7]
[322449312,1713015050262,-500.0,0.00035489,7]
[322449313,1713015050273,-1583.55,0.00035489,2]
[322449314,1713015050283,-500.0,0.0003549,7]
[322449315,1713015050295,-500.0,0.0003549,7]
[322449316,1713015050305,-509.57875445,0.0003549,7]
[322449317,1713015050315,-500.0,0.0003549,7]
[322449318,1713015050324,-500.0,0.0003549,7]
[322449319,1713015050335,-500.0,0.0003549,7]
[322449320,1713015050345,-790.53,0.0003549,7]
[322449321,1713015050357,-790.53,0.0003549,7]
[322449322,1713015050368,-790.53,0.0003549,7]
[322449323,1713015050378,-790.53,0.0003549,7]
[322449324,1713015050391,-790.61826694,0.0003549,7]
[322449325,1713015050403,-834.75,0.0003549,7]
[322449326,1713015050413,-500.0,0.0003549,7]
[322449327,1713015050424,-500.0,0.0003549,7]
[322449328,1713015050435,-500.0,0.0003549,7]
[322449329,1713015050445,-500.0,0.0003549,7]
[322449330,1713015050456,-500.0,0.0003549,7]
[322449331,1713015050467,-500.0,0.0003549,7]
[322449332,1713015050477,-500.0,0.0003549,7]
[322449333,1713015050488,-500.0,0.0003549,7]
[322449334,1713015050498,-580.63,0.0003549,7]
[322449335,1713015050509,-500.0,0.0003549,7]
[322449336,1713015050519,-1357.57,0.0003549,7]
[322449337,1713015050529,-500.0,0.0003549,7]
[322449338,1713015050539,-1014.92,0.0003549,7]
[322449339,1713015050548,-504.2554637,0.0003549,7]
[322449340,1713015050559,-500.0,0.0003549,7]
[322449341,1713015050568,-500.0,0.0003549,7]
[322449342,1713015050579,-3042.43,0.0003549,7]
[322449343,1713015050588,-1349.33,0.0003549,7]
[322449344,1713015050598,-507.16326243,0.0003549,7]
[322449345,1713015050608,-500.0,0.0003549,7]
[322449346,1713015050618,-500.0,0.0003549,7]
[322449347,1713015050628,-500.0,0.0003549,7]
[322449348,1713015050642,-500.0,0.0003549,7]
[322449349,1713015050652,-823.08,0.0003549,7]
[322449350,1713015050662,-500.0,0.0003549,7]
[322449351,1713015050672,-725.59,0.0003549,7]
[322449352,1713015050681,-151.0,0.0003549,2]
[322449353,1713015050690,-2575.23,0.0003549,7]
[322449354,1713015050700,-1177.63,0.0003549,7]
[322449355,1713015050710,-2208.49,0.0003549,7]
[322449356,1713015050719,-721.69,0.0003549,7]
[322449357,1713015050733,-500.0,0.0003549,7]
[322449358,1713015050743,-174.739023,0.0003549,2]
[322449359,1713015050753,-500.0,0.0003549,7]
[322449360,1713015050763,-1096.19,0.0003549,7]
[322449361,1713015050774,-818.08,0.0003549,7]
[322449362,1713015050785,-500.0,0.0003549,7]
[322449363,1713015050794,-2592.32,0.0003549,7]
[322449364,1713015050805,-998.3,0.0003549,7]
[322449365,1713015050816,-500.0,0.0003549,7]
[322449366,1713015050827,-500.0,0.0003549,7]
[322449367,1713015050839,-815.7,0.0003549,7]
[322449368,1713015050849,-500.0,0.0003549,7]
[322449369,1713015050859,-1108.59,0.0003549,7]
[322449370,1713015050870,-500.0,0.0003549,7]
[322449371,1713015050880,-500.0,0.0003549,7]
[322449372,1713015050893,-1128.53,0.0003549,7]
[322449373,1713015050904,-500.0,0.0003549,7]
[322449374,1713015050914,-2516.5,0.0003549,7]
[322449375,1713015050925,-33798.35,0.0003549,7]
[322449376,1713015050936,-500.0,0.0003549,7]
[322449377,1713015050946,-500.0,0.0003549,7]
[322449378,1713015050956,-500.0,0.0003549,7]
[322449379,1713015050966,-500.0,0.0003549,7]
[322449380,1713015050976,-2217.02,0.0003549,7]
[322449381,1713015050986,-500.0,0.0003549,7]
[322449382,1713015050995,-2535.45,0.0003549,7]
[322449383,1713015051006,-1396.73,0.0003549,7]
[322449384,1713015051017,-939.26,0.0003549,7]
[322449385,1713015051027,-500.0,0.0003549,7]
[322449386,1713015051038,-648.57,0.0003549,7]
[322449387,1713015051047,-706.34,0.0003549,7]
[322449388,1713015051057,-151.0,0.0003549,2]
[322449389,1713015051067,-1152.24,0.0003549,7]
[322449390,1713015051076,-500.0,0.0003549,7]
[322449391,1713015051086,-500.0,0.0003549,7]
[322449392,1713015051096,-500.0,0.0003549,7]
[322449393,1713015051105,-500.0,0.0003549,7]
[322449394,1713015051116,-500.0,0.0003549,7]
[322449395,1713015051126,-500.0,0.0003549,7]
[322449396,1713015051136,-577.5287327,0.0003549,7]
[322449397,1713015051149,-648.74,0.0003549,7]
[322449398,1713015051159,-500.0,0.0003549,7]
[322449399,1713015051169,-2250.58,0.0003549,7]
[322449400,1713015051181,-500.0,0.0003549,7]
[322449401,1713015051191,-1147.33,0.0003549,7]
[322449402,1713015051202,-6760.6,0.0003549,7]
[322449403,1713015051212,-200.64231789,0.00035491,7]
[322449404,1713015051223,-2043.72,0.00035491,7]
[322449405,1713015051233,-738.77,0.00035491,7]
[322449406,1713015051242,-500.0,0.00035491,7]
[322449407,1713015051252,-500.0,0.00035491,7]
[322449408,1713015051262,-500.0,0.00035491,7]
[322449409,1713015051271,-500.0,0.00035491,7]
[322449410,1713015051282,-3317.61,0.00035491,7]
[322449411,1713015051292,-2363.91,0.00035491,7]
[322449412,1713015051302,-500.0,0.00035491,7]
[322449413,1713015051314,-500.0,0.00035491,7]
[322449414,1713015051323,-508.33,0.00035491,7]
[322449415,1713015051333,-853.71,0.00035491,7]
[322449416,1713015051344,-500.0,0.00035491,7]
[322449417,1713015051354,-500.0,0.00035491,7]
[322449418,1713015051364,-151.0,0.00035491,2]
[322449419,1713015051374,-640.17,0.00035492,7]
[322449420,1713015051385,-209.69412608,0.00035492,7]
[322449421,1713015051398,-1384.9,0.00035492,7]
[322449422,1713015051408,-500.0,0.00035492,7]
[322449423,1713015051417,-518.626347,0.00035492,7]
[322449424,1713015051427,-503.4515301,0.00035492,7]
[322449425,1713015051437,-151.0,0.00035492,2]
[322449426,1713015051448,-484.472316,0.00035492,2]
[322449427,1713015051458,-484.472316,0.00035492,2]
[322449428,1713015051468,-190.001494,0.00035493,2]
[322449429,1713015051479,-190.001494,0.00035493,2]
[322449430,1713015051489,-151.0,0.00035493,2]
[322449431,1713015051499,-1273.99064541,0.000355,4]
[322449432,1713015051510,-155.57915177,0.00035531,2]
[322449433,1713015051519,-150.0,0.00035604,2]
[322449434,1713015051530,-596.06,0.00035616,2]
[322449435,1713015051540,-3806.860386,0.00035616,120]
[322449436,1713015051550,-151.0,0.00035667,2]
[322449437,1713015051560,-8866.39,0.00035667,7]
[322449438,1713015051570,-987.58,0.00035763,7]
[322449439,1713015051580,-1583.55,0.00035763,2]
[322449440,1713015051590,-500.0,0.00035764,7]
[322449441,1713015051601,-500.0,0.00035764,7]
[322449442,1713015051611,-500.0,0.00035764,7]
[322449443,1713015051621,-500.0,0.00035764,7]
[322449444,1713015051633,-500.0,0.00035764,7]
[322449445,1713015051644,-834.75,0.00035764,7]
[322449446,1713015051654,-573.95846797,0.00035764,7]
[322449447,1713015051665,-500.0,0.00035764,7]
[322449448,1713015051676,-500.0,0.00035764,7]
[322449449,1713015051686,-500.0,0.00035764,7]
[322449450,1713015051696,-500.0,0.00035764,7]
[322449451,1713015051706,-151.0,0.00035764,2]
[322449452,1713015051717,-500.0,0.00035764,7]
[322449453,1713015051727,-484.472316,0.00035764,2]
[322449454,1713015051846,-500.0,0.00035764,7]
[322449455,1713015051856,-484.472316,0.00035764,2]
[322449456,1713015051867,-500.0,0.00035764,7]
[322449457,1713015051877,-580.63,0.00035764,7]
[322449458,1713015051889,-500.0,0.00035764,7]
[322449459,1713015051898,-1357.57,0.00035764,7]
[322449460,1713015051908,-500.0,0.00035764,7]
[322449461,1713015051918,-1014.92,0.00035764,7]
[322449462,1713015051928,-500.0,0.00035764,7]
[322449463,1713015051937,-500.0,0.00035764,7]
[322449464,1713015051947,-3042.43,0.00035764,7]
[322449465,1713015051956,-1349.33,0.00035764,7]
[322449466,1713015051966,-500.0,0.00035764,7]
[322449467,1713015051975,-500.0,0.00035764,7]
[322449468,1713015051984,-275.00288816,0.00035764,7]
[322449469,1713015051993,-823.08,0.00035764,7]
[322449470,1713015052003,-725.59,0.00035764,7]
[322449471,1713015052012,-151.0,0.00035764,2]
[322449472,1713015052022,-2575.23,0.00035764,7]
[322449473,1713015052031,-1177.63,0.00035764,7]
[322449474,1713015052041,-2208.49,0.00035764,7]
[322449475,1713015052051,-721.69,0.00035764,7]
[322449476,1713015052060,-500.0,0.00035764,7]
[322449477,1713015052069,-500.0,0.00035764,7]
[322449478,1713015052079,-1096.19,0.00035764,7]
[322449479,1713015052089,-818.08,0.00035764,7]
[322449480,1713015052098,-500.0,0.00035764,7]
[322449481,1713015052107,-2592.32,0.00035764,7]
[322449482,1713015052117,-998.3,0.00035764,7]
[322449483,1713015052126,-500.0,0.00035764,7]
[322449484,1713015052135,-815.7,0.00035764,7]
[322449485,1713015052146,-500.0,0.00035764,7]
[322449486,1713015052155,-1108.59,0.00035764,7]
[322449487,1713015052164,-500.0,0.00035764,7]